Workbook

Sheet 1
A1: Школа | B1: ГБОУ «Маскаринская школа-интернат для детей с ОВЗ» | E1: Отд./корп | F1: 4день | I1: Дата | J1: 19.02.26
A3: Прием пищи | B3: Раздел | C3: № рец. | D3: Блюдо | E3: Выход, г | F3: Цена | G3: Калорийность | H3: Белки | I3: Жиры | J3: Углеводы
A4: Завтрак | B4: гор.блюдо | C4: 23 | D4: Каша геркулес молочный | E4: 200 | F4: 22.38 | G4: 212 | H4: 9.7 | I4: 8.3 | J4: 36.8
B5: гор.напиток | C5: 54 | D5: Кофейный напиток из цикория | E5: 200 | F5: 13.77 | G5: 135 | H5: 4.32 | I5: 4.6 | J5: 9.6
B6: хлеб | C6: 37 | D6: Хлеб пшеничный | E6: 120 | F6: 7.92 | G6: 284.1 | H6: 3.1 | I6: 0.2 | J6: 20.1
B7: масло слив. | C7: 50 | D7: Масло слив. | E7: 15 | F7: 18.09 | G7: 205 | H7: 0.4 | I7: 62.5 | J7: 0.8
B8: сыр | C8: 48 | D8: Сыр | E8: 24 | F8: 20.00 | G8: 67.4 | H8: 4.3 | I8: 5.4 | J8: 0
B9: фрукты | C9: 61 | D9: Апельсин | E9: 100 | F9: 13.90 | G9: 36 | H9: 1.4 | I9: 0.3 | J9: 8.1
E11: =SUM(E4:E10) -> 659 | F11: 96.06 | G11: =SUM(G4:G10) -> 939.5 | H11: =SUM(H4:H10) -> 23.22 | I11: =SUM(I4:I10) -> 81.3 | J11: =SUM(J4:J10) -> 75.4
A12: Завтрак 2 | B12: фрукты | C12: 62 | D12: Банан | E12: 100 | F12: 15.60 | G12: 96 | H12: 1.4 | I12: 0.3 | J12: 12.1
B13: хлеб бел. | C13: 37 | D13: Хлеб пшеничный | E13: 160 | F13: 10.56 | G13: 378.8 | H13: 3.1 | I13: 0.2 | J13: 20.1
B14: напиток | C14: 53 | D14: Компот из смеси сухофруктов | E14: 200 | F14: 2.95 | G14: 110 | H14: 4 | I14: 0.06 | J14: 35.2
B15: кондит.изд. | C15: 46 | D15: Вафли | E15: 30 | F15: 7.50 | G15: 154.2 | H15: 1 | I15: 8.8 | J15: 18.8
E16: =SUM(E12:E15) -> 490 | F16: 36.61 | G16: =SUM(G12:G15) -> 739 | H16: =SUM(H12:H15) -> 9.5 | I16: =SUM(I12:I15) -> 9.36 | J16: =SUM(J12:J15) -> 86.2
A17: Обед | B17: закуска | C17: 31 | D17: Салат из белокач.капусты | E17: 100 | F17: 5.91 | G17: 105.5 | H17: 2.1 | I17: 8.5 | J17: 10.5
B18: 1 блюдо | C18: 4 | D18: Рассольник с перловкой со сметаной | E18: 250/10 | F18: 32.74 | G18: 322 | H18: 4.65 | I18: 10.01 | J18: 10.08
B19: 2 блюдо | C19: 17 | D19: Картофельное пюре | E19: 200 | F19: 25.48 | G19: 207 | H19: 4.9 | I19: 7.2 | J19: 34
B20: гарнир | C20: 27 | D20: Котлеты из говядины | E20: 100 | F20: 64.14 | G20: 217.2 | H20: 21 | I20: 22.2 | J20: 15
B21: напиток | C21: 57 | D21: Сок | E21: 200 | F21: 12.40 | G21: 94 | H21: 0.8 | I21: 0 | J21: 23
B22: хлеб бел.
B23: хлеб черн. | C23: 36 | D23: Хлеб "Дарницкий" | E23: 80 | F23: 6.92 | G23: 164.8 | H23: 2.6 | I23: 0.4 | J23: 17
E26: =SUM(E17:E25) -> 680 | F26: 147.59 | G26: =SUM(G17:G25) -> 1110.5 | H26: =SUM(H17:H25) -> 36.05 | I26: =SUM(I17:I25) -> 48.31 | J26: =SUM(J17:J25) -> 109.58
A27: Полдник | B27: кисломол.
B28: фрукты
E31: 0 | F31: 0.00 | G31: 0 | H31: 0 | I31: 0 | J31: 0
A32: Ужин | B32: хлеб черн. | C32: 36 | D32: Хлеб "Дарницкий" | E32: 80 | F32: 6.92 | G32: 164.8 | H32: 2.6 | I32: 0.4 | J32: 17
B33: масло слив. | C33: 50 | D33: Масло слив. | E33: 15 | F33: 1.89 | G33: 205 | H33: 0.4 | I33: 62.5 | J33: 0.8
B34: гор.напиток | C34: 52 | D34: Чай с мол. | E34: 200 | F34: 9.77 | G34: 30 | H34: 1.64 | I34: 1.64 | J34: 2.38
B35: 2 блюдо | C35: 11 | D35: Плов из говядины | E35: 200 | F35: 33.17 | G35: 258 | H35: 18.8 | I35: 15.6 | J35: 18.6
E38: =SUM(E32:E37) -> 495 | F38: 51.75 | G38: =SUM(G32:G37) -> 657.8 | H38: =SUM(H32:H37) -> 23.44 | I38: =SUM(I32:I37) -> 80.14 | J38: =SUM(J32:J37) -> 38.78
A39: Ужин 2 | B39: кисломол. | C39: 58 | D39: Ряженка | E39: 200 | F39: 24.08 | G39: 134 | H39: 12 | I39: 2 | J39: 8.4
B40: фрукты | C40: 60 | D40: Яблоки св. | E40: 100 | F40: 6.80 | G40: 68.6 | H40: 0.6 | I40: 0.6 | J40: 14.3
B41: напиток
E45: =SUM(E39:E44) -> 300 | F45: 30.88 | G45: =SUM(G39:G44) -> 202.6 | H45: =SUM(H39:H44) -> 12.6 | I45: =SUM(I39:I44) -> 2.6 | J45: =SUM(J39:J44) -> 22.7
